fUSD/lending_fUSD_20240822
["ID","MTS","AMOUNT","RATE_DAILY","PERIOD"]
[335508701,1724292647659,-500.0,0.00010958,2]
[335508703,1724292647667,-618.10024824,0.00010958,2]
[335508704,1724292647677,-2528.37,0.00010958,2]
[335508706,1724292647686,-2528.37,0.00010958,2]
[335508708,1724292647695,-2457.18187132,0.00010958,2]
[335508711,1724292647709,-71.18812868,0.00010958,2]
[335508713,1724292647720,-2528.37,0.00010958,2]
[335508715,1724292647729,-407.24467132,0.00010958,2]
[335508722,1724292648545,-321.56691331,0.00010958,2]
[335508723,1724292648570,-1799.55841537,0.00010958,2]
[335508724,1724292648579,-1103.34262884,0.00010958,2]
[335508725,1724292666348,7584.67251845,9.775e-05,2]
[335508726,1724292670080,150.0,9.898e-05,2]
[335508727,1724292670102,150.0,9.898e-05,2]
[335508728,1724292670124,150.0,9.898e-05,2]
[335508729,1724292670145,150.0,9.898e-05,2]
[335508730,1724292670166,87.3045,9.898e-05,2]
[335508731,1724292677752,150.0,9.856e-05,2]
[335508732,1724292677774,18.32,9.856e-05,2]
[335508733,1724292758366,7584.67251845,9.856e-05,2]
[335508734,1724292786774,250.0,9.843e-05,2]
[335508735,1724292815401,150.0,8.219e-05,2]
[335508736,1724292815422,598.95,8.219e-05,2]
[335508737,1724292840810,840.0,9.839e-05,2]
[335508738,1724292855354,7597.78502442,9.843e-05,2]
[335508740,1724292927728,150.0,9.839e-05,2]
[335508741,1724292927750,293.2555,9.839e-05,2]
[335508742,1724292927774,308.8945,9.839e-05,2]
[335508743,1724293021398,178.15,9.839e-05,2]
[335508744,1724293060206,244.54,9.831e-05,2]
[335508746,1724293092968,257.78,9.831e-05,2]
[335508747,1724293125376,7584.67251845,9.831e-05,2]
[335508748,1724293236382,7584.67251845,9.831e-05,2]
[335508749,1724293266545,7584.67251845,9.831e-05,2]
[335508750,1724293286513,773.81,8.219e-05,2]
[335508751,1724293299567,250.0,9.811e-05,2]
[335508752,1724293330009,328.0,9.814e-05,2]
[335508754,1724293391388,7584.67251845,9.814e-05,2]
[335508755,1724293408398,7584.67251845,9.814e-05,2]
[335508756,1724293408801,300.0,9.704e-05,2]
[335508757,1724293509589,7584.67251845,9.704e-05,2]
[335508758,1724293511079,23900.0,9.695e-05,2]
[335508759,1724293514978,151.95664593,9.838e-05,2]
[335508760,1724293524901,198.4,9.703e-05,2]
[335508761,1724293596401,150.0,9.703e-05,2]
[335508762,1724293596423,7434.67251845,9.703e-05,2]
[335508763,1724293611396,7584.67251845,9.703e-05,2]
[335508765,1724293689771,554.39,9.655e-05,2]
[335508766,1724293748641,500.0,8.22e-05,2]
[335508767,1724293748668,500.0,8.22e-05,2]
[335508768,1724293748911,500.0,8.22e-05,2]
[335508769,1724293750242,500.0,9.59e-05,2]
[335508770,1724293750272,500.0,9.59e-05,2]
[335508775,1724293772406,7584.67251845,9.655e-05,2]
[335508778,1724293794660,765.63,8.219e-05,2]
[335508779,1724293800555,737.6,9.661e-05,2]
[335508782,1724293815561,500.0,8.22e-05,2]
[335508783,1724293815708,500.91305999,8.22e-05,2]
[335508784,1724293815951,250.0,9.637e-05,2]
[335508802,1724293831717,-300.0,9.937e-05,2]
[335508803,1724293831727,-480.45374498,9.941e-05,2]
[335508804,1724293831737,-443.35494347,9.943e-05,2]
[335508805,1724293831747,-504.55223227,9.999e-05,2]
[335508806,1724293831756,-159.09965725,0.0001,2]
[335508807,1724293831766,-1050.0,0.0001,2]
[335508808,1724293831775,-181.81807766,0.00010026,2]
[335508809,1724293831785,-162.43209215,0.00010026,2]
[335508810,1724293831795,-155.60596726,0.00010097,2]
[335508811,1724293831805,-300.0,0.00010099,2]
[335508812,1724293831815,-5355.0,0.000101,5]
[335508813,1724293831824,-346.07378855,0.000101,2]
[335508814,1724293831834,-209.35,0.00010188,2]
[335508815,1724293831844,-765.63,0.00010457,2]
[335508816,1724293831853,-500.63573835,0.00010471,2]
[335508817,1724293831863,-1017.16,0.00010504,2]
[335508818,1724293831872,-3268.45,0.00010504,2]
[335508819,1724293831882,-344.42,0.00010504,2]
[335508820,1724293831892,-155.13293556,0.00010505,2]
[335508821,1724293831902,-159.09965725,0.00010558,2]
[335508822,1724293831912,-1914.9503,0.00010558,2]
[335508823,1724293831922,-2296.1461,0.00010558,2]
[335508824,1724293831931,-2500.0,0.00010558,2]
[335508825,1724293831941,-155.0,0.00010566,2]
[335508826,1724293831952,-150.0,0.00010657,2]
[335508827,1724293831961,-1000.0,0.00010658,2]
[335508828,1724293831970,-245000.0,0.00010658,2]
[335508829,1724293831981,-100000.0,0.00010658,2]
[335508830,1724293831991,-426.79,0.00010662,2]
[335508831,1724293832000,-531.48,0.00010662,2]
[335508832,1724293832010,-150.0,0.00010662,2]
[335508833,1724293832019,-150.0,0.00010662,2]
[335508834,1724293832028,-426.79,0.00010662,2]
[335508835,1724293832039,-426.79,0.00010662,2]
[335508836,1724293832049,-150.0,0.00010662,2]
[335508837,1724293832058,-150.0,0.00010662,2]
[335508838,1724293832068,-426.23,0.00010662,2]
[335508839,1724293832078,-197.4,0.00010662,2]
[335508840,1724293832087,-426.72,0.00010662,2]
[335508841,1724293832096,-499.99,0.00010685,2]
[335508842,1724293832107,-150.0,0.00010689,2]
[335508843,1724293832116,-150.0,0.00010691,2]
[335508844,1724293832126,-150.0,0.00010692,2]
[335508845,1724293832135,-150.0,0.00010692,2]
[335508846,1724293832145,-150.0,0.00010695,2]
[335508847,1724293832154,-150.0,0.000107,2]
[335508848,1724293832163,-150.0,0.000107,2]
[335508849,1724293832172,-150.0,0.000107,2]
[335508850,1724293832181,-300.0,0.000107,2]
[335508851,1724293832190,-531.48,0.000107,2]
[335508852,1724293832200,-426.79,0.000107,2]
[335508853,1724293832209,-150.0,0.000107,2]
[335508854,1724293832218,-150.0,0.000107,2]
[335508855,1724293832227,-150.0,0.000107,2]
[335508856,1724293832237,-426.79,0.000107,2]
[335508857,1724293832247,-531.48,0.000107,2]
[335508858,1724293832256,-531.48,0.000107,2]
[335508859,1724293832265,-426.79,0.000107,2]
[335508860,1724293832274,-150.0,0.000107,2]
[335508861,1724293832283,-150.0,0.000107,2]
[335508862,1724293832293,-150.0,0.000107,2]
[335508863,1724293832302,-150.0,0.000107,2]
[335508864,1724293832312,-150.0,0.00010701,2]
[335508865,1724293832321,-150.0,0.00010702,2]
[335508866,1724293832331,-150.0,0.00010709,2]
[335508867,1724293832340,-468.3275992,0.00010713,2]
[335508868,1724293832349,-150.0,0.00010714,2]
[335508869,1724293832358,-150.0,0.00010718,2]
[335508870,1724293832368,-150.0,0.00010719,2]
[335508871,1724293832377,-150.0,0.00010725,2]
[335508872,1724293832388,-168.64300694,0.00010727,2]
[335508873,1724293832397,-150.0,0.00010727,2]
[335508874,1724293832406,-150.0,0.00010728,2]
[335508875,1724293832415,-150.0,0.0001073,2]
[335508876,1724293832425,-150.0,0.00010733,2]
[335508877,1724293832434,-150.0,0.00010737,2]
[335508878,1724293832444,-388.84316887,0.00010739,2]
[335508879,1724293832453,-150.0,0.00010741,2]
[335508880,1724293832462,-150.0,0.00010742,2]
[335508881,1724293832472,-150.0,0.00010743,2]
[335508882,1724293832481,-150.0,0.00010745,2]
[335508883,1724293832491,-150.0,0.00010749,2]
[335508884,1724293832500,-150.0,0.00010751,2]
[335508885,1724293832509,-150.0,0.00010752,2]
[335508886,1724293832519,-150.0,0.00010753,2]
[335508887,1724293832528,-150.0,0.00010754,2]
[335508888,1724293832538,-150.0,0.00010757,2]
[335508889,1724293832547,-150.0,0.00010758,2]
[335508890,1724293832557,-150.0,0.00010758,2]
[335508891,1724293832566,-1520.6081822,0.00010758,2]
[335508892,1724293832576,-150.0,0.00010764,2]
[335508893,1724293832585,-150.0,0.00010772,2]
[335508894,1724293832595,-150.0,0.00010778,2]
[335508895,1724293832604,-150.0,0.00010779,2]
[335508896,1724293832614,-150.0,0.00010779,2]
[335508897,1724293832623,-150.0,0.0001078,2]
[335508898,1724293832633,-150.0,0.00010781,2]
[335508899,1724293832642,-150.0,0.00010781,2]
[335508900,1724293832651,-150.0,0.00010782,2]
[335508901,1724293832661,-150.0,0.00010783,2]
[335508902,1724293832670,-150.0,0.0001079,2]
[335508903,1724293832679,-150.0,0.00010798,2]
[335508904,1724293832689,-150.0,0.00010799,2]
[335508905,1724293832698,-150.0,0.00010799,2]
[335508906,1724293832708,-12325.47431908,0.000108,2]
[335508907,1724293832717,-155.94399844,0.000108,2]
[335508908,1724293832726,-150.0,0.00010801,2]
[335508909,1724293832735,-150.0,0.00010802,2]
[335508910,1724293832745,-150.0,0.00010803,2]
[335508911,1724293832754,-150.0,0.00010804,2]
[335508912,1724293832763,-150.0,0.00010805,2]
[335508913,1724293832772,-150.0,0.00010809,2]
[335508914,1724293832781,-150.0,0.00010813,2]
[335508915,1724293832791,-150.0,0.00010815,2]
[335508916,1724293832800,-150.0,0.00010817,2]
[335508917,1724293832810,-153.05764618,0.00010817,2]
[335508918,1724293832819,-150.0,0.00010822,2]
[335508919,1724293832829,-152.31,0.00010825,2]
[335508920,1724293832839,-150.0,0.00010826,2]
[335508921,1724293832849,-150.0,0.00010833,2]
[335508922,1724293832859,-150.0,0.00010833,2]
[335508923,1724293832869,-150.0,0.00010833,2]
[335508924,1724293832879,-6733.35688844,0.00010833,2]
[335508925,1724293832892,-334.17,0.00010833,2]
[335508926,1724293832906,-6.17249458,0.00010833,2]
[335508927,1724293832916,-150.0,0.00010834,2]
[335508928,1724293832926,-150.0,0.00010835,2]
[335508929,1724293832936,-150.0,0.00010835,2]
[335508930,1724293832948,-849.82750542,0.00010835,2]
[335508931,1724293832959,-297223.48297732,0.00010835,2]
[335508932,1724293832971,-2722.12504729,0.00010835,2]
[335508933,1724293832983,-9335.58180308,0.00010835,2]
[335508934,1724293832996,-1229.15336946,0.00010835,2]
[335508935,1724293833007,-2514.72665498,0.00010835,2]
[335508936,1724293833018,-22916.49869489,0.00010835,2]
[335508937,1724293833046,-1215.07590594,0.00010835,2]
[335508938,1724293833057,-3586.11267,0.00010835,2]
[335508939,1724293833082,-2845.88702739,0.00010835,2]
[335508940,1724293833094,-929.99995,0.00010835,2]
[335508941,1724293833105,-1679.06194262,0.00010835,2]
[335508942,1724293837673,-202.1095946,0.00010009,2]
[335508943,1724293837682,-150.0,0.00010683,2]
[335508944,1724293837692,-150.0,0.00010683,2]
[335508945,1724293837701,-150.0,0.00010687,2]
[335508946,1724293837711,-150.0,0.00010687,2]
[335508947,1724293837721,-150.0,0.00010688,2]
[335508948,1724293837730,-150.0,0.0001069,2]
[335508949,1724293837740,-150.0,0.0001069,2]
[335508950,1724293837750,-150.0,0.00010699,2]
[335508951,1724293837761,-150.0,0.00010705,2]
[335508952,1724293837770,-150.0,0.00010706,2]
[335508953,1724293837780,-150.0,0.00010709,2]
[335508954,1724293837791,-150.0,0.0001071,2]
[335508955,1724293837801,-150.0,0.00010713,2]
[335508956,1724293837811,-150.0,0.00010715,2]
[335508957,1724293837821,-57.03397456,0.00010718,2]
[335508958,1724293837836,-92.96602544,0.00010718,2]
[335508959,1724293837846,-150.0,0.0001072,2]
[335508960,1724293837856,-150.0,0.00010721,2]
[335508961,1724293837866,-150.0,0.00010723,2]
[335508962,1724293837876,-150.0,0.0001073,2]
[335508963,1724293837890,-150.0,0.00010736,2]
[335508964,1724293837901,-150.0,0.00010739,2]
[335508965,1724293837914,-150.0,0.00010741,2]
[335508966,1724293837924,-150.0,0.00010743,2]
[335508967,1724293837933,-150.0,0.00010744,2]
[335508968,1724293837943,-150.0,0.00010744,2]
[335508969,1724293837953,-150.0,0.0001075,2]
[335508970,1724293837964,-150.0,0.00010751,2]
[335508971,1724293837973,-150.0,0.00010752,2]
[335508972,1724293837983,-150.0,0.00010756,2]
[335508973,1724293837992,-150.0,0.0001076,2]
[335508974,1724293838001,-150.0,0.00010761,2]
[335508975,1724293838011,-150.0,0.00010766,2]
[335508983,1724293838122,-150.0,0.00010768,2]
[335508984,1724293838140,-150.0,0.00010786,2]
[335508985,1724293838149,-150.0,0.00010788,2]
[335508986,1724293838159,-150.0,0.00010792,2]
[335508987,1724293838168,-150.0,0.00010809,2]
[335508988,1724293838177,-150.0,0.0001081,2]
[335508989,1724293838187,-150.0,0.00010812,2]
[335508990,1724293838196,-150.0,0.00010815,2]
[335508991,1724293838206,-150.0,0.00010815,2]
[335508992,1724293838215,-150.0,0.00010828,2]
[335508993,1724293838224,-150.0,0.00010831,2]
[335508994,1724293838233,-150.0,0.00010833,2]
[335508995,1724293838242,-1708.9103815,0.00010835,2]
[335508996,1724293838404,-4236.72490095,0.00010835,2]
[335508997,1724293838415,-486.49027743,0.00010835,2]
[335508998,1724293838427,-1605.98,0.00010835,2]
[335508999,1724293838469,-150.0,0.00010705,2]
[335509000,1724293838479,-1345.67112458,0.00010835,2]
[335509001,1724293838491,-712.43225591,0.00010835,2]
[335509002,1724293838501,-4228.83077454,0.00010835,2]
[335509003,1724293839755,-150.0,0.00010686,2]
[335509004,1724293839767,-150.0,0.00010686,2]
[335509005,1724293839779,-3.80060881,0.00010687,2]
[335509006,1724293839888,-146.19939119,0.00010687,2]
[335509007,1724293839900,-150.0,0.00010689,2]
[335509008,1724293839914,-150.0,0.00010689,2]
[335509009,1724293839926,-150.0,0.00010704,2]
[335509010,1724293839938,-150.0,0.00010721,2]
[335509011,1724293839951,-150.0,0.00010727,2]
[335509012,1724293839964,-150.0,0.00010734,2]
[335509013,1724293839977,-150.0,0.00010734,2]
[335509014,1724293839992,-150.0,0.00010743,2]
[335509015,1724293840003,-150.0,0.00010745,2]
[335509016,1724293840014,-150.0,0.0001075,2]
[335509017,1724293840025,-150.0,0.0001076,2]
[335509018,1724293840034,-150.0,0.0001077,2]
[335509019,1724293840043,-150.0,0.00010784,2]
[335509020,1724293840053,-150.0,0.00010806,2]
[335509021,1724293840062,-150.0,0.00010817,2]
[335509022,1724293840072,-150.0,0.00010828,2]
[335509023,1724293840083,-150.0,0.00010829,2]
[335509024,1724293840093,-150.0,0.00010833,2]
[335509025,1724293840285,-2860.47688083,0.00010835,2]
[335509026,1724293840314,-495.94399432,0.00010835,2]
[335509027,1724293840325,-462.7030002,0.00010835,2]
[335509028,1724293840372,-150.0,0.00010731,2]
[335509029,1724293840383,-150.0,0.00010734,2]
[335509030,1724293840394,-3948.13800387,0.00010835,2]
[335509031,1724293840491,-150.0,0.00010687,2]
[335509032,1724293840501,-150.0,0.00010758,2]
[335509033,1724293840510,-150.0,0.00010772,2]
[335509034,1724293840520,-150.0,0.00010781,2]
[335509035,1724293840529,-150.0,0.00010787,2]
[335509036,1724293840539,-150.0,0.00010806,2]
[335509037,1724293840547,-150.0,0.00010814,2]
[335509038,1724293840557,-150.0,0.00010828,2]
[335509039,1724293840566,-78509.18356559,0.00010835,2]
[335509040,1724293840577,-374.07477111,0.00010835,2]
[335509048,1724293842929,-150.0,0.00010712,2]
[335509049,1724293842939,-150.0,0.00010714,2]
[335509050,1724293842948,-150.0,0.00010733,2]
[335509051,1724293842959,-150.0,0.00010747,2]
[335509052,1724293842968,-150.0,0.00010765,2]
[335509053,1724293842978,-150.0,0.00010769,2]
[335509054,1724293842988,-150.0,0.00010787,2]
[335509055,1724293842998,-167.50675063,0.00010835,2]
[335509056,1724293843067,-1433.76304378,0.00010835,2]
[335509057,1724293843079,-508.350001,0.00010835,2]
[335509058,1724293843248,-311482.01636691,0.00010835,2]
[335509059,1724293843258,-150.0,0.00010838,2]
[335509060,1724293843267,-150.0,0.00010839,2]
[335509061,1724293843277,-150.0,0.00010839,2]
[335509062,1724293843287,-150.0,0.00010841,2]
[335509063,1724293843296,-150.0,0.00010843,2]
[335509064,1724293843306,-150.0,0.00010844,2]
[335509065,1724293843316,-150.0,0.00010845,2]
[335509066,1724293843325,-150.0,0.00010846,2]
[335509067,1724293843335,-150.0,0.00010846,2]
[335509068,1724293843344,-150.0,0.00010847,2]
[335509069,1724293843354,-150.0,0.00010847,2]
[335509070,1724293843363,-448.4951,0.0001085,2]
[335509071,1724293843372,-150.0,0.0001085,2]
[335509072,1724293843384,-150.0,0.00010852,2]
[335509073,1724293843393,-150.0,0.00010853,2]
[335509075,1724293843403,-620.308,0.00010853,2]
[335509077,1724293843412,-226.069,0.00010853,2]
[335509079,1724293843422,-668.026,0.00010853,2]
[335509080,1724293843431,-674.999,0.00010853,2]
[335509082,1724293843440,-150.0,0.00010855,2]
[335509084,1724293843449,-171.02524515,0.00010858,2]
[335509085,1724293843458,-150.0,0.00010858,2]
[335509086,1724293843468,-150.0,0.00010858,2]
[335509087,1724293843477,-150.0,0.00010861,2]
[335509088,1724293843487,-150.0,0.00010861,2]
[335509089,1724293843496,-150.0,0.00010862,2]
[335509090,1724293843505,-150.0,0.00010862,2]
[335509091,1724293843515,-150.0,0.00010863,2]
[335509092,1724293843524,-150.0,0.00010863,2]
[335509093,1724293843533,-150.0,0.00010864,2]
[335509094,1724293843543,-150.0,0.00010864,2]
[335509095,1724293843552,-150.0,0.00010865,2]
[335509096,1724293843561,-150.0,0.00010865,2]
[335509097,1724293843571,-150.0,0.00010866,2]
[335509098,1724293843581,-150.0,0.00010867,2]
[335509099,1724293843590,-737.6,0.00010868,2]
[335509100,1724293843600,-150.0,0.00010869,2]
[335509101,1724293843609,-150.0,0.00010871,2]
[335509102,1724293843619,-150.0,0.00010871,2]
[335509103,1724293843627,-150.0,0.00010871,2]
[335509104,1724293843638,-150.0,0.00010872,2]
[335509105,1724293843647,-150.0,0.00010872,2]
[335509106,1724293843656,-200.74278963,0.00010873,2]
[335509107,1724293843666,-468.25143076,0.00010873,2]
[335509108,1724293843675,-150.0,0.00010875,2]
[335509109,1724293843684,-150.0,0.00010876,2]
[335509110,1724293843694,-150.0,0.00010879,2]
[335509111,1724293843703,-6891.84108451,0.0001088,2]
[335509112,1724293843712,-150.0,0.00010881,2]
[335509113,1724293843722,-150.0,0.00010883,2]
[335509114,1724293843731,-150.0,0.00010885,2]
[335509115,1724293843740,-150.0,0.00010888,2]
[335509116,1724293843749,-150.0,0.00010888,2]
[335509117,1724293843759,-150.0,0.00010888,2]
[335509118,1724293843768,-150.0,0.00010889,2]
[335509119,1724293843778,-150.0,0.00010891,2]
[335509120,1724293843787,-150.0,0.00010891,2]
[335509121,1724293843796,-150.0,0.00010893,2]
[335509122,1724293843806,-150.0,0.00010893,2]
[335509123,1724293843815,-150.0,0.00010896,2]
[335509124,1724293843824,-150.0,0.00010898,2]
[335509125,1724293843834,-150.0,0.00010898,2]
[335509126,1724293843843,-150.0,0.00010899,2]
[335509127,1724293843852,-171.02524515,0.000109,2]
[335509128,1724293843862,-536.1,0.000109,2]
[335509129,1724293843871,-713.6,0.000109,2]
[335509130,1724293843880,-150.0,0.000109,2]
[335509131,1724293843892,-151.29,0.000109,2]
[335509132,1724293843902,-430.49,0.000109,2]
[335509133,1724293843911,-150.0,0.000109,2]
[335509134,1724293843923,-150.0,0.000109,2]
[335509135,1724293843935,-150.0,0.00010903,2]
[335509136,1724293843944,-150.0,0.00010905,2]
[335509137,1724293843953,-150.0,0.00010906,2]
[335509138,1724293843963,-150.0,0.00010907,2]
[335509139,1724293843972,-150.0,0.00010907,2]
[335509140,1724293843981,-150.0,0.00010907,2]
[335509141,1724293843991,-150.0,0.00010907,2]
[335509142,1724293844002,-150.0,0.00010908,2]
[335509143,1724293844011,-150.0,0.0001091,2]
[335509144,1724293844021,-150.0,0.00010912,2]
[335509145,1724293844030,-150.0,0.00010913,2]
[335509146,1724293844040,-150.0,0.00010915,2]
[335509147,1724293844049,-150.0,0.00010917,2]
[335509148,1724293844059,-150.0,0.00010917,2]
[335509149,1724293844068,-150.0,0.00010918,2]
[335509150,1724293844078,-150.0,0.0001092,2]
[335509151,1724293844088,-150.0,0.00010921,2]
[335509152,1724293844097,-150.0,0.00010921,2]
[335509153,1724293844107,-150.0,0.00010922,2]
[335509154,1724293844116,-150.0,0.00010922,2]
[335509155,1724293844126,-150.0,0.00010927,2]
[335509156,1724293844136,-150.0,0.0001093,2]
[335509157,1724293844146,-150.0,0.00010931,2]
[335509158,1724293844155,-150.0,0.00010932,2]
[335509159,1724293844164,-150.0,0.00010932,2]
[335509160,1724293844173,-150.0,0.00010932,2]
[335509161,1724293844183,-150.0,0.00010934,2]
[335509162,1724293844192,-150.0,0.00010936,2]
[335509163,1724293844201,-150.0,0.00010937,2]
[335509164,1724293844211,-150.0,0.00010938,2]
[335509165,1724293844220,-150.0,0.00010938,2]
[335509166,1724293844229,-150.0,0.00010941,2]
[335509167,1724293844238,-150.0,0.00010941,2]
[335509168,1724293844248,-150.0,0.00010942,2]
[335509169,1724293844257,-150.0,0.00010943,2]
[335509170,1724293844267,-150.0,0.00010944,2]
[335509171,1724293844276,-705.0,0.00010945,2]
[335509172,1724293844286,-150.0,0.00010945,2]
[335509173,1724293844295,-150.0,0.00010945,2]
[335509174,1724293844304,-150.0,0.00010945,2]
[335509175,1724293844314,-150.0,0.00010945,2]
[335509176,1724293844324,-150.0,0.00010945,2]
[335509177,1724293844334,-150.0,0.00010946,2]
[335509178,1724293844343,-150.0,0.00010946,2]
[335509179,1724293844352,-150.0,0.00010946,2]
[335509180,1724293844361,-150.0,0.00010947,2]
[335509181,1724293844371,-150.0,0.00010947,2]
[335509182,1724293844380,-150.0,0.00010947,2]
[335509183,1724293844390,-150.0,0.00010948,2]
[335509184,1724293844499,-150.0,0.00010948,2]
[335509185,1724293844508,-150.0,0.00010948,2]
[335509186,1724293844518,-348.46968061,0.00010949,2]
[335509187,1724293844527,-150.0,0.00010949,2]
[335509188,1724293844536,-150.0,0.00010951,2]
[335509189,1724293844545,-3842.754704,0.00010951,2]
[335509190,1724293844554,-3037.1874331,0.00010951,2]
[335509191,1724293844563,-24683.0136159,0.00010951,2]
[335509192,1724293844572,-1519.4131615,0.00010951,2]
[335509193,1724293844581,-1217.97480628,0.00010957,2]
[335509194,1724293844590,-200.0,0.00010958,2]
[335509195,1724293844599,-500.0,0.00010958,2]
[335509196,1724293844608,-500.0,0.00010958,2]
[335509197,1724293844617,-500.0,0.00010958,2]
[335509198,1724293844626,-500.0,0.00010958,2]
[335509199,1724293844635,-388.76051545,0.00010958,2]
[335509200,1724293844644,-225.15018257,0.00010958,2]
[335509201,1724293844653,-500.0,0.00010958,2]
[335509202,1724293844662,-500.0,0.00010958,2]
[335509203,1724293844671,-500.0,0.00010958,2]
[335509204,1724293844679,-500.0,0.00010958,2]
[335509205,1724293844688,-500.0,0.00010958,2]
[335509206,1724293844697,-500.0,0.00010958,2]
[335509207,1724293844706,-500.0,0.00010958,2]
[335509208,1724293844715,-500.0,0.00010958,2]
[335509209,1724293844723,-500.0,0.00010958,2]
[335509210,1724293844733,-500.0,0.00010958,2]
[335509211,1724293844742,-500.0,0.00010958,2]
[335509212,1724293844751,-203.88105209,0.00010958,2]
[335509213,1724293844760,-500.0,0.00010958,2]
[335509214,1724293844769,-500.0,0.00010958,2]
[335509215,1724293844778,-500.0,0.00010958,2]
[335509216,1724293844787,-500.0,0.00010958,2]
[335509217,1724293844796,-500.0,0.00010958,2]
[335509218,1724293844805,-500.0,0.00010958,2]
[335509219,1724293844814,-500.0,0.00010958,2]
[335509220,1724293844823,-500.0,0.00010958,2]
[335509221,1724293844832,-500.0,0.00010958,2]
[335509222,1724293844841,-500.0,0.00010958,2]
[335509223,1724293844850,-500.0,0.00010958,2]
[335509224,1724293844859,-286.88957525,0.00010958,2]
[335509225,1724293844869,-151.0,0.00010958,2]
[335509226,1724293844879,-151.0,0.00010958,2]
[335509227,1724293844889,-178.389983,0.00010958,2]
[335509228,1724293844898,-500.0,0.00010958,2]
[335509229,1724293844907,-500.0,0.00010958,2]
[335509230,1724293844919,-500.0,0.00010958,2]
[335509231,1724293844928,-500.0,0.00010958,2]
[335509232,1724293844938,-500.0,0.00010958,2]
[335509233,1724293844947,-500.0,0.00010958,2]
[335509234,1724293844956,-500.0,0.00010958,2]
[335509235,1724293844965,-500.0,0.00010958,2]
[335509236,1724293844974,-500.0,0.00010958,2]
[335509237,1724293844984,-500.0,0.00010958,2]
[335509238,1724293844993,-512.44038501,0.00010958,2]
[335509239,1724293845002,-504.58854355,0.00010958,2]
[335509240,1724293845012,-151.0,0.00010958,2]
[335509241,1724293845020,-151.0,0.00010958,2]
[335509242,1724293845030,-151.0,0.00010958,2]
[335509243,1724293845039,-151.773712,0.00010958,2]
[335509244,1724293845049,-500.0,0.00010958,2]
[335509245,1724293845059,-318.84589947,0.00010958,2]
[335509246,1724293845067,-151.0,0.00010958,2]
[335509247,1724293845077,-227.970624,0.00010958,2]
[335509248,1724293845086,-500.0,0.00010958,2]
[335509249,1724293845095,-500.0,0.00010958,2]
[335509250,1724293845105,-264.32768256,0.00010958,2]
[335509251,1724293845115,-151.0,0.00010958,2]
[335509252,1724293845124,-151.0,0.00010958,2]
[335509253,1724293845135,-151.0,0.00010958,2]
[335509254,1724293845146,-151.0,0.00010958,2]
[335509255,1724293845155,-298.419783,0.00010958,2]
[335509256,1724293845164,-200.0,0.00010958,2]
[335509257,1724293845173,-500.0,0.00010958,2]
[335509258,1724293845182,-619.06570487,0.00010958,2]
[335509259,1724293845191,-151.0,0.00010958,2]
[335509260,1724293845200,-151.0,0.00010958,2]
[335509261,1724293845209,-291.057537,0.00010958,2]